[Event "Romanian Team Blitz Open 2022"]
[Site "Sebes"]
[Date "2022.12.04"]
[Round "6.26"]
[White "Murariu, Andrei"]
[Black "Nagy-Elek, Tamas"]
[Result "1-0"]
[ECO "E14"]
[WhiteElo "2493"]
[BlackElo "1976"]
[Annotator "TA"]
[PlyCount "43"]
[EventDate "2022.12.04"]
[EventType "blitz"]
[EventCountry "ROU"]
[SourceTitle "playchess.com"]
[Source "ChessBase"]
[SourceQuality "1"]
[TimeControl "180+2"]

{[%evp 19,43,0,0,-13,-13,-82,-83,-106,-81,-79,19,35,46,34,96,85,86,18,376,68,239,239,820,826,29998,29999]} 1. e4 {[%emt 0:00:03]} c6 {[%emt 0:00:02]} 2. c4 {[%emt 0:00:02]} d5 {[%emt 0:00:01]} 3. exd5 {[%emt 0:00:01]} cxd5 {[%emt 0:00:02]} 4. cxd5 {[%emt 0:00:02]} Nf6 {[%emt 0:00:01]} 5. Nc3 {[%emt 0:00:02]} Nxd5 {[%emt 0:00:03]} 6. Nf3 {[%emt 0:00:01]} e6 {[%emt 0:00:03]} 7. d4 {[%emt 0:00:05]} Be7 {[%emt 0:00:06]} 8. Bd3 {[%emt 0:00:03]} O-O {[%emt 0:00:05]} 9. O-O {[%emt 0:00:06]} b6 {[%emt 0:00:17]} 10. Re1 {[%emt 0:00:15]} Bb7 {[%emt 0:00:03]} 11. Qe2 {[%emt 0:00:29] E14: Queen's Indian: Classical Variation (4 e3).} Nd7 {[%emt 0:00:16]} 12. Qe4 {[%emt 0:00:30]} (12. Nxd5 $11 Bxd5 13. a3) 12... N7f6 $17 {[%emt 0:00:08]} 13. Qh4 {[%emt 0:00:04] [#] Black is better.} Nxc3 $146 {[%emt 0:01:23]} ({Predecessor:} 13... Nb4 14. Bb1 Ba6 15. Ne5 Rc8 16. Bg5 g6 17. Be4 Nfd5 18. Bxe7 Qxe7 19. Qg3 Rfd8 {1-0 (55) Duer,A (2365)-Angerer,H (2162) Austria 2001}) 14. bxc3 {[%emt 0:00:05]} Re8 {[%emt 0:00:08]} (14... Bxf3 $17 15. gxf3 Rc8) 15. Qh3 {[%emt 0:00:18]} Rc8 {[%emt 0:00:18]} 16. Ne5 {[%emt 0:00:05]} Qd6 {[%emt 0:00:14]} (16... Rf8 $14) 17. Bg5 $16 {[%emt 0:00:10]} g6 {[%emt 0:00:10]} 18. Rac1 {[%emt 0:00:10] White has more active pieces.} ({But not} 18. Nxf7 $6 Kxf7 19. Bxf6 Kxf6 $11) ({White should play} 18. Bc4 $16) 18... Nd5 $2 {[%emt 0:00:03][%mdl 8192] [#]} (18... Nh5 $11 {and Black is okay.} 19. Bd2 Bf6) 19. Bd2 $2 {[%emt 0:00:13]} (19. Nxf7 $1 $18 {[%mdl 512] Threatening mate with Bxg6.} Nf4 20. Qg4 (20. Nxd6 Nxh3+ 21. gxh3 Bxd6 $14) 20... Nxd3 21. Nxd6 Bxd6 22. Rxe6 Nxc1 23. Bxc1 (23. Rxd6 $2 Re1#)) 19... Bf6 $2 {[%emt 0:00:06]} (19... Nf6 $14) 20. Nxf7 $1 $18 {[%emt 0:00:07]} Kxf7 {[%emt 0:00:03]} (20... Qc7) 21. Qxh7+ {[%emt 0:00:02]} Kf8 {[%emt 0:00:07]} 22. Bh6+ {[%emt 0:00:53] Weighted Error Value: White=0.60/Black=1.20} 1-0

[Event "Romanian Team Blitz Open 2022"]
[Site "Sebes"]
[Date "2022.12.04"]
[Round "6.27"]
[White "Chiheri, Alexandru-Virgil"]
[Black "Grecescu, Gabriel-Andrei"]
[Result "0-1"]
[ECO "B35"]
[WhiteElo "1937"]
[BlackElo "2388"]
[Annotator "TA"]
[PlyCount "75"]
[EventDate "2022.12.04"]
[EventType "blitz"]
[EventCountry "ROU"]
[SourceTitle "playchess.com"]
[Source "ChessBase"]
[SourceQuality "1"]
[TimeControl "180+2"]

{[%evp 19,75,44,50,0,0,-91,0,-69,39,35,33,18,21,20,32,0,0,-120,-30,-100,-63,-95,-97,-98,-83,-137,-36,-35,-19,-6,36,66,129,-82,140,118,129,134,129,0,0,0,0,0,0,0,0,0,0,0,0,0,0,-20,-21,-1591,-1573,-29991]} 1. e4 {[%emt 0:00:02]} c5 {[%emt 0:00:02]} 2. Nf3 {[%emt 0:00:02]} Nc6 {[%emt 0:00:02]} 3. d4 {[%emt 0:00:02]} cxd4 {[%emt 0:00:02]} 4. Nxd4 {[%emt 0:00:02]} g6 {[%emt 0:00:02]} 5. Nc3 {[%emt 0:00:02]} Bg7 {[%emt 0:00:02]} 6. Be3 {[%emt 0:00:02]} Nf6 {[%emt 0:00:02]} 7. Bc4 {[%emt 0:00:02]} Qa5 {[%emt 0:00:02]} 8. O-O {[%emt 0:00:02]} O-O {[%emt 0:00:02]} 9. Bb3 {[%emt 0:00:02]} d6 {[%emt 0:00:02]} 10. h3 {[%emt 0:00:02]} Bd7 {[%emt 0:00:02]} 11. Kh1 {[%emt 0:00:02] B35: Sicilian: Accelerated Dragon with 5 Nc3: main line.} (11. Re1 $14) 11... Rac8 $11 {[%emt 0:00:21] [#]} 12. Qe2 $146 {[%emt 0:00:05] [#]} (12. Kg1 $11) ({Predecessor:} 12. f4 Nxd4 13. Bxd4 Bc6 14. Qd3 Qh5 15. Bxa7 b5 16. a3 Nd7 17. Bd4 Nc5 18. Qe3 Bxd4 19. Qxd4 Nxb3 20. cxb3 {1-0 (26) Dhanush Ram,M (1728)-Mayank,K (1434) New Delhi 2022}) 12... Qh5 {[%emt 0:00:23]} (12... Nxe4 $1 $17 13. Nxc6 Bxc6 14. Nxe4 Bxe4) 13. f3 {[%emt 0:00:20] [#]} (13. Rad1 $11) 13... Ne5 {[%emt 0:00:10]} ({Black should try} 13... Nxe4 $1 $15 14. fxe4 Nxd4 15. Qxh5 gxh5) 14. Rae1 {[%emt 0:00:08]} a6 {[%emt 0:00:05]} 15. Qd2 {[%emt 0:00:19]} Nc4 {[%emt 0:00:08]} 16. Bxc4 {[%emt 0:00:07]} Rxc4 {[%emt 0:00:02]} 17. Qd3 {[%emt 0:00:01]} (17. b3 $5 {[%cal Rb3c4]} Rcc8 18. Nce2 $11) 17... Rfc8 {[%emt 0:00:07][%cal Od7h3]} 18. Kh2 {[%emt 0:00:15]} (18. Nde2 $1 $11) 18... b5 {[%emt 0:00:13]} (18... d5 $17 {...e5 is the strong threat.} 19. Nde2 dxe4 20. fxe4 Ng4+ 21. Kg1 Nxe3 22. Qxe3 Bc6) 19. a3 {[%emt 0:00:01]} (19. Nce2 $11 {remains equal.}) 19... Qe5+ {[%emt 0:00:47]} 20. f4 {[%emt 0:00:01]} Qh5 {[%emt 0:00:01]} 21. Bg1 {[%emt 0:00:26]} e5 {[%emt 0:00:18]} 22. Nde2 {[%emt 0:00:33]} (22. fxe5 $142 dxe5 23. Nf3) 22... d5 {[%emt 0:00:19] Black is more active.} (22... exf4 $17 {Threatens to win with ...Ng4+.} 23. Rxf4 Qe5) 23. exd5 $15 {[%emt 0:00:06]} (23. Nxd5 Nxd5 24. Qxd5 Bc6 $17) 23... exf4 {[%emt 0:00:10]} 24. Nxf4 {[%emt 0:00:03]} Ng4+ {[%emt 0:00:07]} 25. Kh1 {[%emt 0:00:05]} Qh6 {[%emt 0:00:01]} (25... Qh4 $14) 26. Re7 $2 {[%emt 0:00:20]} (26. Qf3 $16 {[%cal Of4e6] stays on course. aiming for Ne6!} Ne5 27. Qf2) 26... Bf5 {[%emt 0:00:05] Against Ne6} (26... Rxf4 $17 {keeps the pressure on.} 27. Rxf4 (27. Rxd7 $2 {loses.} Ne5 $19) 27... Qxf4 28. hxg4 (28. Rxd7 $2 Ne5 $19) 28... Qxg4) 27. Qf3 $16 {[%emt 0:00:07] And now d6 would win.} Ne5 {[%emt 0:00:06] Prevents d6.} 28. Qe3 {[%emt 0:00:10]} Ng4 {[%emt 0:00:08] [#]} 29. Re8+ {[%emt 0:00:01]} ({White should play} 29. Qg3 $1 $16) 29... Bf8 $11 {[%emt 0:00:03]} 30. Qe2 {[%emt 0:00:04]} Rxe8 {[%emt 0:00:03] Dancing on a razor blade.} 31. Qxe8 {[%emt 0:00:01]} Rxf4 {[%emt 0:00:02]} 32. Rxf4 {[%emt 0:00:23]} Qxf4 {[%emt 0:00:01]} 33. hxg4 {[%emt 0:00:01] Hoping for Bc5.} Qh6+ {[%emt 0:00:02]} ({Much less strong is} 33... Bxg4 34. Bc5 Qc1+ 35. Kh2 Qh6+ 36. Kg1 $14) 34. Bh2 {[%emt 0:00:01]} Qc1+ {[%emt 0:00:02]} 35. Bg1 {[%emt 0:00:01]} Bxg4 {[%emt 0:00:01]} 36. Kh2 {[%emt 0:00:02]} Qf4+ {[%emt 0:00:02]} (36... Qxb2 {leads to mate.} 37. Bc5 Kg7 38. Bxf8+ Kf6 39. Be7+ Ke5 40. Qh8+ Kf4 41. Qd4+ Kf5 42. Qf6#) 37. g3 $2 {[%emt 0:00:03][%mdl 8192]} (37. Kh1 $11) 37... Qd2+ $19 {[%emt 0:00:02]} 38. Qe2 {[%emt 0:00:12] Weighted Error Value: White=0.62/Black=0.35} 0-1

[Event "Romanian Team Blitz Open 2022"]
[Site "Sebes"]
[Date "2022.12.04"]
[Round "6.28"]
[White "Cnejev, Vladimir-Alexandru"]
[Black "Duma, Ioan-Gheorghe"]
[Result "1-0"]
[ECO "C65"]
[WhiteElo "2293"]
[BlackElo "1782"]
[Annotator "TA"]
[PlyCount "35"]
[EventDate "2022.12.04"]
[EventType "blitz"]
[EventCountry "ROU"]
[SourceTitle "playchess.com"]
[Source "ChessBase"]
[SourceQuality "1"]
[TimeControl "180+2"]

{[%evp 9,35,18,255,260,311,306,321,335,347,355,341,343,437,455,453,447,465,477,633,634,571,566,777,766,1210,1189,1496,1470]} 1. e4 {[%emt 0:00:02]} e5 {[%emt 0:00:00]} 2. Nf3 {[%emt 0:00:01]} Nc6 {[%emt 0:03:06]} 3. Bb5 {[%emt 0:00:00]} Nf6 {[%emt 0:00:00]} 4. O-O {[%emt 0:00:01]} Bc5 {[%emt 0:00:00]} 5. c3 {[%emt 0:00:02][%cal Bc2c3,Bc3d4][%mdl 32]} d6 $2 {[%emt 0:00:00] [#]} (5... O-O $11) 6. d4 $18 {[%emt 0:00:03] C65: Ruy Lopez: Berlin Defence (3...Nf6), unusual lines and 4 0-0 Bc5.} exd4 {[%emt 0:00:00]} 7. cxd4 {[%emt 0:00:02]} Bb6 {[%emt 0:00:00][%cal Oe8g8]} 8. d5 {White has a decisive advantage.} a6 9. Ba4 {[%emt 0:00:01]} ({Inferior is} 9. Bxc6+ bxc6 10. Qa4 O-O $11) 9... O-O {[%emt 0:00:00]} 10. dxc6 {[%emt 0:00:01]} bxc6 {[%emt 0:00:00]} 11. Bxc6 {[%emt 0:00:01] White is clearly winning.} Rb8 {[%emt 0:00:00]} 12. Nc3 {[%emt 0:00:01] [#]} a5 $146 {[%emt 0:00:00]} ({Predecessor:} 12... Bb7 13. Bxb7 Rxb7 14. Bg5 Re8 15. Qc2 h6 16. Bh4 Ba5 17. Nd5 g5 18. Nxg5 hxg5 19. Bxg5 {1-0 (58) Lekkas,A (1389)-Siakavaras,K (1116) Tornelo INT 2021}) 13. Bg5 {[%emt 0:00:01]} Ba6 {[%emt 0:00:00]} 14. Re1 {[%emt 0:00:02]} h6 {[%emt 0:00:00]} 15. Bh4 {[%emt 0:00:01]} g5 {[%emt 0:00:26] [#]} 16. Nxg5 {[%emt 0:00:08]} hxg5 {[%emt 0:00:00]} (16... Nh7 17. Nf3) 17. Bxg5 {[%emt 0:00:01]} Kh7 {[%emt 0:00:00]} 18. Nd5 {[%emt 0:00:08] Black did not feel at home in the position after the opening.   Weighted Error Value: White=0.00 (flawless) /Black=0.67} 1-0

[Event "Romanian Team Blitz Open 2022"]
[Site "Sebes"]
[Date "2022.12.04"]
[Round "6.29"]
[White "Miron, Toma"]
[Black "Zaim, Marian"]
[Result "0-1"]
[ECO "A00"]
[WhiteElo "2188"]
[BlackElo "1935"]
[Annotator "TA"]
[PlyCount "98"]
[EventDate "2022.12.04"]
[EventType "blitz"]
[EventCountry "ROU"]
[SourceTitle "playchess.com"]
[Source "ChessBase"]
[SourceQuality "1"]
[TimeControl "180+2"]

{[%evp 9,98,20,67,40,42,10,40,-2,42,25,70,58,102,77,91,30,24,19,46,-47,57,-41,98,97,107,38,187,141,252,164,266,250,582,192,172,80,222,202,187,155,419,177,151,0,129,0,0,-26,-7,-7,0,0,0,-36,143,141,127,122,86,94,281,96,277,273,239,0,0,0,0,0,0,-80,0,0,0,0,0,0,0,0,0,0,0,0,0,0,2335,0,0,-1092,-1045]} 1. g4 {[%emt 0:00:02]} d6 {[%emt 0:00:04]} 2. Bg2 {[%emt 0:00:01]} c6 {[%emt 0:00:02]} 3. h3 {[%emt 0:00:02]} e5 {[%emt 0:00:06]} 4. d4 {[%emt 0:00:03]} Qc7 {[%emt 0:00:04] [#]} 5. e4 $146 {[%emt 0:00:07]} ({Predecessor:} 5. c4 Nf6 6. Nc3 Be7 7. Nf3 Nbd7 8. g5 Nh5 9. e4 g6 10. Be3 a5 11. Qd2 {1-0 (64) Omariev,M (2304)-Hoffmann,A (2185) Chess.com INT 2022}) 5... Nf6 {[%emt 0:00:08]} (5... Ne7 $11) 6. g5 {[%emt 0:00:05] A00: Irregular Openings.} Nfd7 {[%emt 0:00:01]} 7. c3 {[%emt 0:00:02]} Be7 {[%emt 0:00:05]} 8. h4 {[%emt 0:00:04] White is slightly better.} c5 {[%emt 0:00:09]} 9. d5 {[%emt 0:00:04]} Qd8 {[%emt 0:00:19]} 10. Ne2 {[%emt 0:00:02]} Na6 {[%emt 0:00:04]} 11. Ng3 {[%emt 0:00:04]} Nc7 {[%emt 0:00:07]} 12. c4 {[%emt 0:00:04]} (12. a4 $16) 12... b5 $11 {[%emt 0:00:02]} 13. b3 {[%emt 0:00:01]} Rb8 {[%emt 0:00:07]} 14. O-O {[%emt 0:00:07]} (14. Na3 $14) 14... Nb6 {[%emt 0:00:08]} (14... g6 $15) 15. Nd2 {[%emt 0:00:18]} ({White should play} 15. Nc3 $14) 15... a5 {[%emt 0:00:17]} (15... f6 $15) 16. f4 $16 {[%emt 0:00:15]} bxc4 {[%emt 0:00:18]} 17. bxc4 {[%emt 0:00:03]} (17. fxe5 $16 dxe5 18. Nxc4 (18. bxc4 O-O $16) 18... Nxc4 19. bxc4) 17... Nd7 {[%emt 0:00:05]} (17... exf4 $14 18. Nf5 (18. Rxf4 h6 $11) 18... O-O) 18. f5 {[%emt 0:00:09]} ({White should try} 18. Nb3 $18) 18... Ba6 {[%emt 0:00:07]} (18... Na6 $16 {is a better defense.} 19. Rb1 Rxb1 20. Nxb1 f6 21. Qh5+ Kf8) 19. Qg4 {[%emt 0:00:26][%cal Of5f6]} Nb6 {[%emt 0:00:03]} (19... Rg8 $142 20. Qh5 Nf8) 20. f6 $18 {[%emt 0:00:15]} Bf8 {[%emt 0:00:14]} (20... gxf6 {is more resistant.} 21. gxf6 Bf8) 21. h5 $2 {[%emt 0:00:05]} (21. fxg7 Bxg7 22. Nf5) 21... gxf6 {[%emt 0:00:11]} 22. gxf6 {[%emt 0:00:07]} (22. Rxf6 $18 {and White stays clearly on top. aiming for Rf2.} Be7 23. Rf2) 22... Nxc4 {[%emt 0:00:07]} (22... Bxc4 $2 23. Nxc4 Nxc4 24. Bh3 $18) (22... Bc8 $16 23. Nf5 Qxf6) 23. Nxc4 {[%emt 0:00:06]} Bxc4 {[%emt 0:00:01]} 24. Rf2 {[%emt 0:00:04]} Bb5 $2 {[%emt 0:00:19]} (24... Ba6 $16 {might work better.}) 25. Bd2 {[%emt 0:00:03]} (25. Nf5 $142 $1 {[%cal Rf5g7] Strongly threatening Ng7+.} Qd7 26. a4) 25... Bd7 {[%emt 0:00:03]} 26. Qg5 {[%emt 0:00:12]} (26. Nf5 $16 Bxf5 27. Qxf5 (27. Rxf5 Rb2 $16)) 26... Na6 {[%emt 0:00:03]} (26... h6 $11 {keeps the balance.} 27. Qh4 Nb5) 27. a3 {[%emt 0:00:04]} (27. Nf5 $16 Bxf5 28. Qxf5 (28. Rxf5 Qb6 $16)) 27... h6 $36 {[%emt 0:00:42][%mdl 2048] Black is pushing.} 28. Qh4 {[%emt 0:00:04]} Rg8 {[%emt 0:00:00]} (28... c4 {simplifies} 29. Nf5 Bxf5 30. Rxf5 Nc5) 29. Nf5 {[%emt 0:00:05]} Bxf5 {[%emt 0:00:00]} 30. Rxf5 {[%emt 0:00:03]} Rb2 {[%emt 0:00:00]} 31. Qe1 {[%emt 0:00:17]} Qc8 $2 {[%emt 0:00:00]} (31... Qb6 $15 {keeps the upper hand.}) 32. Rb1 $1 $16 {[%emt 0:00:06]} Qb7 {[%emt 0:00:00]} 33. Rxb2 {[%emt 0:00:02]} Qxb2 {[%emt 0:00:00]} 34. Rf2 {[%emt 0:00:04]} Qxa3 $2 {[%emt 0:00:00]} (34... c4 $16) 35. Bxa5 $2 {[%emt 0:00:02]} (35. Qf1 $1 $18 {[%cal Rf1a6] and the rest is easy.} Nc7 36. Bc1) 35... Nb4 {[%emt 0:00:00]} (35... Rg3 $16) 36. Bxb4 $1 $18 {[%emt 0:00:09]} cxb4 {[%emt 0:00:00]} 37. Qb1 $2 {[%emt 0:00:06]} (37. Rc2 $1 $18) 37... Rg3 {[%emt 0:00:05]} 38. Rb2 {[%emt 0:00:06]} (38. Ra2 $5 Qe3+ $8 39. Kh2 $11) 38... Qe3+ {[%emt 0:00:04]} 39. Rf2 {[%emt 0:00:10]} b3 {[%emt 0:00:01][%cal Of8e7]} 40. Qb2 {[%emt 0:00:02] [#]} (40. Qa1 $11 {remains equal.}) 40... Qxe4 {[%emt 0:00:04] Black is more active.} (40... Qe1+ $1 $17 41. Kh2 Rc3) 41. Kh2 {[%emt 0:00:03]} Qh4+ {[%emt 0:00:03]} 42. Kg1 {[%emt 0:00:01]} Qg5 {[%emt 0:00:07]} 43. Qa3 {[%emt 0:00:08]} Kd7 {[%emt 0:00:03]} 44. Qa7+ {[%emt 0:00:03]} Kc8 {[%emt 0:00:01]} 45. Qa8+ {[%emt 0:00:01]} Kc7 {[%emt 0:00:00]} 46. Qxf8 {[%emt 0:00:02] Black must now prevent Qe7+.} Qc1+ {[%emt 0:00:06]} 47. Kh2 {[%emt 0:00:00]} Qg5 {[%emt 0:00:02][%mdl 8192] [#]} (47... Rxg2+ $11 48. Kxg2 Qg5+ 49. Kh3 (49. Kf1 Qc1+ 50. Kg2 Qg5+ 51. Kh3 Qe3+ 52. Kg2 Qg5+ $11) 49... Qe3+ 50. Kg2 Qg5+ 51. Kh2 (51. Kf1 Qc1+ 52. Kg2 Qg5+ $11) 51... Qh4+ 52. Kg2 (52. Kg1 Qg5+ 53. Rg2 Qe3+ 54. Kh2 Qf4+ 55. Kh3 Qf3+ 56. Rg3 Qf1+ 57. Rg2 Qf3+ 58. Rg3 Qf1+ 59. Rg2 Qf3+ $11) 52... Qg5+) 48. Qxf7+ $2 {[%emt 0:00:03]} (48. Qe7+ $1 $18 Kc8 49. Qe8+ (49. Qxf7 Rxg2+ 50. Rxg2 Qh4+ 51. Kg1 Qe1+ 52. Kh2 Qh4+ 53. Kg1 Qe1+ 54. Kh2 Qh4+ $11) 49... Kb7 50. Qd7+ (50. Qxf7+ Kb6 $11) 50... Ka8 51. Qa4+ (51. Qxd6 Rxg2+ 52. Rxg2 Qh4+ 53. Kg1 Qe1+ 54. Kh2 Qh4+ 55. Kg1 Qe1+ 56. Kh2 Qh4+ $11) 51... Kb7 52. Bf3 Rxf3 53. Rxf3 Qxh5+ 54. Kg2 Qg6+ 55. Kf2 Qc2+ 56. Kg3 Qg6+ 57. Qg4) 48... Kb6 $11 {[%emt 0:00:00] Hoping for ...Qe3. The board is on fire.} 49. Rb2 $2 {[%emt 0:00:03][%mdl 8192]} (49. Qe6 $11 Rxg2+ 50. Rxg2 Qf4+ 51. Rg3 Qf2+ 52. Rg2 Qf4+ 53. Kh3 Qf3+ 54. Rg3 (54. Kh2 Qf4+ $11) 54... Qh1+ 55. Kg4 Qe4+ 56. Kh3 Qh1+ 57. Kg4 Qe4+ 58. Kh3 Qh1+) 49... Qf4 {[%emt 0:00:08] Weighted Error Value: White=0.77/Black=0.60} 0-1

[Event "Romanian Team Blitz Open 2022"]
[Site "Sebes"]
[Date "2022.12.04"]
[Round "6.30"]
[White "Tinta, Gheorghe"]
[Black "Campian, Cristian"]
[Result "1-0"]
[ECO "D02"]
[WhiteElo "1855"]
[BlackElo "1998"]
[Annotator "TA"]
[PlyCount "97"]
[EventDate "2022.12.04"]
[EventType "blitz"]
[EventCountry "ROU"]
[SourceTitle "playchess.com"]
[Source "ChessBase"]
[SourceQuality "1"]
[TimeControl "180+2"]

{[%evp 10,97,20,0,0,6,30,-15,-15,-26,-4,-14,-21,-19,-14,-60,-7,-47,-47,-60,-50,-54,-47,-56,-18,-33,0,-18,0,0,41,-47,95,98,120,132,115,77,56,52,146,129,131,138,135,137,402,406,510,506,530,529,508,459,506,494,472,375,673,672,699,616,580,520,546,321,331,13,341,286,572,563,529,398,379,318,260,28,311,311,390,345,29981,29982,29982,29983,29982,29981,29985,29986]} 1. d4 {[%emt 0:00:02]} d5 {[%emt 0:03:04]} 2. Nf3 {[%emt 0:00:05]} Nf6 {[%emt 0:00:00]} 3. g3 {[%emt 0:00:00]} c6 {[%emt 0:00:00]} 4. Bg2 {[%emt 0:00:01]} Bg4 {[%emt 0:00:00]} 5. Ne5 {[%emt 0:00:06]} Bf5 {[%emt 0:00:00]} 6. O-O {[%emt 0:03:00]} Nbd7 {[%emt 0:00:10] D02: 1 d4 d5 2 Nf3 sidelines, including 2...Nf6 3 g3 and 2...Nf6 3 Bf4.} 7. Nxd7 {[%emt 0:00:00]} Nxd7 {[%emt 0:00:00] [#]} 8. f3 $146 {[%emt 0:00:00]} (8. c4 $5 {[%cal Rc4d5]}) ({Predecessor:} 8. c4 dxc4 9. Na3 e5 10. Nxc4 exd4 11. Qxd4 Nf6 12. Qe5+ Be6 13. Bf4 Nd7 14. Nd6+ Bxd6 15. Qxd6 {1-0 (39) Ziltener,W (2049)-Gudat,A (2051) Bad Woerishofen 2001}) 8... e5 {[%emt 0:00:00] The position is equal.} 9. e4 {[%emt 0:00:00]} dxe4 {[%emt 0:00:00]} 10. fxe4 {[%emt 0:00:00]} Bg6 {[%emt 0:00:00]} 11. c3 {[%emt 0:00:00]} Be7 {[%emt 0:00:00]} 12. Qb3 {[%emt 0:00:00]} (12. Be3 $11) 12... Qb6 {[%emt 0:00:00]} (12... O-O $15) 13. Qxb6 {[%emt 0:00:00]} axb6 {[%emt 0:00:00]} 14. Be3 {[%emt 0:00:00]} b5 {[%emt 0:00:00]} 15. Nd2 {[%emt 0:00:00]} O-O {[%emt 0:00:00]} 16. a3 {[%emt 0:00:00]} Rad8 {[%emt 0:00:00]} 17. Nb3 {[%emt 0:00:00]} f6 {[%emt 0:00:00]} 18. Rad1 {[%emt 0:00:00]} Bh5 {[%emt 0:00:00] Prevents d5.} 19. Rd2 {[%emt 0:00:00]} Bg6 {[%emt 0:00:00]} 20. h3 {[%emt 0:00:00]} (20. d5 $14 cxd5 21. exd5 (21. Rxd5 Bf7 $11)) 20... f5 {[%emt 0:00:00]} (20... exd4 $15 {keeps the upper hand.} 21. cxd4 b4) 21. exf5 $16 {[%emt 0:00:00]} Rxf5 {[%emt 0:00:00]} 22. Rxf5 {[%emt 0:00:00]} Bxf5 {[%emt 0:00:00]} 23. g4 {[%emt 0:00:00]} Bg6 {[%emt 0:00:00]} 24. d5 {[%emt 0:00:00]} Nf6 {[%emt 0:00:00]} (24... e4 $14) 25. dxc6 {[%emt 0:00:00]} bxc6 {[%emt 0:00:00]} 26. Rxd8+ {[%emt 0:00:00]} Bxd8 {[%emt 0:00:00]} 27. Bxc6 {[%emt 0:00:00]} b4 {[%emt 0:00:00][%mdl 8192] [#]} (27... Be8 $16 {keeps fighting.}) 28. axb4 $18 {[%emt 0:00:00]} (28. cxb4 Bf7 29. Nc5 Bd5 $18) 28... e4 {[%emt 0:00:00]} 29. g5 {[%emt 0:00:00]} Nh5 {[%emt 0:00:00]} 30. Bd5+ {[%emt 0:00:00]} Kf8 {[%emt 0:00:00]} 31. h4 {[%emt 0:00:01]} Ng3 {[%emt 0:00:00]} 32. Kf2 {[%emt 0:00:07]} Nf5 {[%emt 0:00:00]} 33. Nc5 {[%emt 0:00:02]} ({Don't do} 33. Bxe4 Nxe3 34. Kxe3 Bf7 $18) 33... Nxh4 $2 {[%emt 0:00:00]} (33... Ke7 34. Bxe4 Nxh4 35. Bxg6 Nxg6) 34. Ne6+ {[%emt 0:00:05]} Ke8 {[%emt 0:00:00]} 35. Nxg7+ {[%emt 0:00:03]} Kd7 {[%emt 0:00:00]} 36. Ne6 {[%emt 0:00:06] [#] Hoping for Nxd8.} Be7 {[%emt 0:00:00]} 37. Bb3 {[%emt 0:00:04] And now Nd4 would win.} Nf5 {[%emt 0:00:00]} 38. b5 $2 {[%emt 0:00:04]} (38. Bc5 $18) 38... Bf7 $2 {[%emt 0:00:06][%mdl 8192]} (38... Nxe3 $11 {and Black stays safe.} 39. Kxe3 Bf5) 39. Nd4 {[%emt 0:00:05]} Nxd4 $2 {[%emt 0:00:03]} (39... Nxe3 40. Kxe3 (40. Bxf7 Nd1+ 41. Ke2 Nxb2 $16) 40... Bg6 41. Be6+ Kd6) 40. Bxf7 {[%emt 0:00:02]} Nxb5 {[%emt 0:00:02][%mdl 4096] Endgame KBB-KBN} 41. c4 {[%emt 0:00:05]} Nd6 {[%emt 0:00:02]} 42. Bd5 {[%emt 0:00:01]} Nf5 {[%emt 0:00:03]} 43. b3 $2 {[%emt 0:00:03]} ({Not} 43. Bxe4 Nxe3 44. Kxe3 Bxg5+ 45. Kd3 Be7 $14) (43. Bf4 $18) 43... Bb4 $2 {[%emt 0:00:03][%mdl 8192]} (43... Nxe3 $11 44. Kxe3 Bxg5+ 45. Kxe4 h5) 44. Ba7 {[%emt 0:00:06]} Bd2 {[%emt 0:00:04]} 45. Bxe4 {[%emt 0:00:02]} Nd4 {[%emt 0:00:03]} (45... Ke6 $18 46. Kf3 Nd6 47. Bxh7 Bxg5) 46. Bxd4 {[%emt 0:00:02] White mates.} Bxg5 {[%emt 0:00:01]} 47. Bxh7 {[%emt 0:00:02]} Be7 {[%emt 0:00:02]} 48. Kf3 {[%emt 0:00:01]} Kc6 {[%emt 0:00:01]} 49. Be4+ {[%emt 0:00:00] Weighted Error Value: White=0.23 (precise) /Black=0.48} 1-0

[Event "Romanian Team Blitz Open 2022"]
[Site "Sebes"]
[Date "2022.12.04"]
[Round "6.31"]
[White "Sandru, Nicolae"]
[Black "Dumitrascu, Daniel"]
[Result "0-1"]
[ECO "D00"]
[WhiteElo "1647"]
[BlackElo "1694"]
[Annotator "NA COMBH"]
[PlyCount "82"]
[EventDate "2022.12.04"]
[EventType "blitz"]
[EventCountry "ROU"]
[SourceTitle "playchess.com"]
[Source "ChessBase"]
[SourceQuality "1"]
[TimeControl "180+2"]

1. d4 {[%emt 0:00:01]} Nf6 {[%emt 0:00:02]} 2. Bf4 {[%emt 0:00:02]} d5 {[%emt 0:00:03]} 3. e3 {[%emt 0:00:01]} c5 {[%emt 0:00:02]} 4. c3 {[%emt 0:00:01]} Nc6 {[%emt 0:00:02]} 5. Nd2 {[%emt 0:00:01]} e6 {[%emt 0:00:04]} 6. Bd3 {[%emt 0:00:02]} Bd6 {[%emt 0:00:03]} 7. Bg3 {[%emt 0:00:01]} b6 {[%emt 0:00:25]} 8. Ngf3 {[%emt 0:00:02]} c4 {[%emt 0:00:04]} 9. Bc2 {[%emt 0:00:01]} b5 {[%emt 0:00:04]} 10. a3 {[%emt 0:00:02]} a5 {[%emt 0:00:03]} 11. Ne5 {[%emt 0:00:07]} Bxe5 {[%emt 0:00:08]} 12. dxe5 {[%emt 0:00:03]} Nd7 {[%emt 0:00:01]} 13. f4 {[%emt 0:00:01]} Bb7 {[%emt 0:00:13]} 14. O-O {[%emt 0:00:03]} Qb6 {[%emt 0:00:03]} 15. Qe2 {[%emt 0:00:01]} Nc5 {[%emt 0:00:02]} 16. Bf2 {[%emt 0:00:02]} Rc8 {[%emt 0:02:15]} 17. e4 {[%emt 0:00:06]} Ne7 {[%emt 0:00:00]} 18. exd5 {[%emt 0:00:11]} Bxd5 {[%emt 0:00:00]} 19. Ne4 {[%emt 0:00:09]} Bxe4 {[%emt 0:00:00]} 20. Bxe4 {[%emt 0:00:01]} Qc7 {[%emt 0:00:00]} 21. Bc2 {[%emt 0:00:06]} O-O {[%emt 0:00:00]} 22. Rad1 {[%emt 0:00:04]} Nd5 {[%emt 0:00:00]} 23. Bd4 {[%emt 0:00:06]} Nd7 {[%emt 0:00:00]} 24. f5 {[%emt 0:00:04]} exf5 {[%emt 0:00:00]} 25. Bxf5 {[%emt 0:00:09]} Nc5 {[%emt 0:00:00]} 26. Bxc8 Qxc8 {[%emt 0:00:00]} 27. Rf3 {[%emt 0:00:21]} Ne6 {[%emt 0:00:00]} 28. Bf2 {[%emt 0:00:19]} Ne7 {[%emt 0:00:00]} 29. Rf1 {[%emt 0:00:07]} Ng6 {[%emt 0:00:00]} 30. Bg3 {[%emt 0:00:13]} Nc5 {[%emt 0:00:00]} 31. Qe3 {[%emt 0:00:13]} Nd3 {[%emt 0:00:00]} 32. e6 {[%emt 0:00:07]} fxe6 {[%emt 0:00:00]} 33. Rxf8+ {[%emt 0:00:09]} Nxf8 {[%emt 0:00:00]} 34. Qf3 {[%emt 0:00:09]} Ng6 {[%emt 0:00:00]} 35. Qf7+ {[%emt 0:00:10]} Kh8 {[%emt 0:00:00]} 36. h3 {[%emt 0:00:16]} Nxb2 {[%emt 0:00:01]} 37. Bf2 {[%emt 0:00:10]} Nd3 {[%emt 0:00:01]} 38. Bd4 {[%emt 0:00:07]} e5 {[%emt 0:00:01]} 39. Be3 {[%emt 0:00:09]} b4 {[%emt 0:00:03]} 40. h4 {[%emt 0:00:05]} bxc3 {[%emt 0:00:07]} 41. h5 {[%emt 0:00:00]} Ngf4 {[%emt 0:00:02]} 0-1